[Event "6th NTCC Final 2080"]
[Site "Lalitpur"]
[Date "2024.01.13"]
[Round "2.6"]
[White "Das, Singhesor"]
[Black "Ghimire, Sabin Chandra"]
[Result "0-1"]
[ECO "C43"]
[WhiteElo "1873"]
[BlackElo "1869"]
[Annotator "NA RC COMBH"]
[PlyCount "114"]
[EventDate "2024.01.03"]
[EventType "k.o."]
[EventCountry "NEP"]
[SourceTitle "playchess.com"]
[Source "ChessBase"]
[SourceQuality "1"]
[TimeControl "5400+30"]

1. e4 {[%emt 1:31:00]} e5 {[%emt 1:31:00]} 2. Nf3 {[%emt 0:00:30]} Nf6 3. d4 {[%emt 0:00:30]} Nxe4 {[%emt 0:01:00]} 4. Bd3 {[%emt 0:00:30]} d5 {[%emt 0:00:00]} 5. dxe5 {[%emt 0:00:00]} Nc5 {[%emt 0:00:00]} 6. h3 {[%emt 0:00:00]} Be7 {[%emt 0:00:00]} 7. O-O {[%emt 0:00:00]} Nxd3 {[%emt 0:00:00]} 8. Qxd3 {[%emt 0:00:00]} O-O {[%emt 0:00:00]} 9. Nc3 {[%emt 0:00:00]} c6 {[%emt 0:00:00]} 10. Be3 {[%emt 0:00:00]} Na6 {[%emt 0:00:00]} 11. a3 {[%emt 0:00:00]} Nc5 {[%emt 0:00:00]} 12. Qd2 {[%emt 0:00:00]} Ne6 {[%emt 0:00:00]} 13. Rad1 {[%emt 0:00:00]} b6 {[%emt 0:00:00]} 14. Ne2 {[%emt 0:00:00]} Ba6 {[%emt 0:00:00]} 15. Rfe1 {[%emt 0:00:00]} Bxe2 {[%emt 0:00:00]} 16. Qxe2 {[%emt 0:00:00]} Qc7 {[%emt 0:00:00]} 17. c4 {[%emt 0:00:00]} dxc4 {[%emt 0:00:00]} 18. Qxc4 {[%emt 0:00:00]} c5 {[%emt 0:00:00]} 19. Qe4 {[%emt 0:00:00]} Rfd8 {[%emt 0:00:00]} 20. Nh2 {[%emt 0:00:00]} Rxd1 {[%emt 0:00:00]} 21. Qxa8+ {[%emt 0:00:00]} Qd8 {[%emt 0:00:00]} 22. Qxd8+ {[%emt 0:00:00]} Rxd8 {[%emt 0:00:00]} 23. f4 {[%emt 0:00:00]} Bh4 {[%emt 0:00:00]} 24. Re2 {[%emt 0:00:00]} Rd1+ {[%emt 0:00:00]} 25. Nf1 {[%emt 0:00:00]} Bg3 {[%emt 0:00:00]} 26. f5 {[%emt 0:00:00]} Nd4 {[%emt 0:00:00]} 27. Bxd4 {[%emt 0:00:00]} cxd4 {[%emt 0:00:00]} 28. e6 {[%emt 0:00:00]} fxe6 {[%emt 0:00:00]} 29. fxe6 {[%emt 0:00:00]} Kf8 {[%emt 0:00:00]} 30. Rd2 {[%emt 0:00:00]} Rxd2 {[%emt 0:00:00]} 31. Nxd2 {[%emt 0:00:00]} Bf4 {[%emt 0:00:00]} 32. Nf3 {[%emt 0:00:00]} Bc1 {[%emt 0:00:00]} 33. a4 {[%emt 0:00:00]} Bxb2 {[%emt 0:00:00]} 34. Ne5 {[%emt 0:00:00]} Ke7 {[%emt 0:00:00]} 35. Nc6+ {[%emt 0:00:00]} Kxe6 {[%emt 0:00:00]} 36. Nxa7 {[%emt 0:00:00]} Kd5 {[%emt 0:00:00]} 37. Kf2 {[%emt 0:00:00]} d3 {[%emt 0:00:00]} 38. Ke3 {[%emt 0:00:00]} Kc4 {[%emt 0:00:00]} 39. Kd2 {[%emt 0:00:00]} Bc3+ {[%emt 0:00:00]} 40. Kd1 {[%emt 0:00:00]} Kb3 {[%emt 0:00:00]} 41. Nb5 {[%emt 0:18:30]} Ba5 {[%emt 0:19:00]} 42. Nd4+ {[%emt 0:00:00]} Kxa4 {[%emt 0:00:00]} 43. Ne6 {[%emt 0:00:00]} Bc3 {[%emt 0:01:00]} 44. Nf4 {[%emt 0:00:00]} d2 {[%emt 0:00:00]} 45. Nd5 {[%emt 0:00:00]} Ba5 {[%emt 0:00:00]} 46. Kc2 {[%emt 0:00:00]} Kb5 {[%emt 0:00:00]} 47. Nc7+ {[%emt 0:00:00]} Kc4 {[%emt 0:00:00]} 48. Ne8 {[%emt 0:00:00]} b5 {[%emt 0:00:00]} 49. Nd6+ {[%emt 0:00:00]} Kc5 {[%emt 0:00:00]} 50. Nb7+ {[%emt 0:00:00]} Kb6 {[%emt 0:00:00]} 51. Nd6 {[%emt 0:00:00]} Bc3 {[%emt 0:00:00]} 52. Ne4 {[%emt 0:00:00]} b4 {[%emt 0:00:00]} 53. Nf2 {[%emt 0:00:00]} Kb5 {[%emt 0:00:00]} 54. g4 {[%emt 0:00:00]} Kc4 {[%emt 0:00:00]} 55. h4 {[%emt 0:00:00]} Kd4 {[%emt 0:00:00]} 56. g5 {[%emt 0:00:00]} Ke3 {[%emt 0:00:00]} 57. Nd1+ {[%emt 0:00:00]} Ke2 {[%emt 0:00:00]} 0-1

[Event "6th NTCC Final 2080"]
[Site "Lalitpur"]
[Date "2024.01.13"]
[Round "2.8"]
[White "Gautam, Anushna"]
[Black "Adhikari, Kritisara"]
[Result "1/2-1/2"]
[ECO "B06"]
[WhiteElo "1400"]
[BlackElo "1527"]
[Annotator "NA RC COMBH"]
[PlyCount "84"]
[EventDate "2024.01.03"]
[EventType "k.o."]
[EventCountry "NEP"]
[SourceTitle "playchess.com"]
[Source "ChessBase"]
[SourceQuality "1"]
[TimeControl "5400+30"]

1. e4 {[%emt 1:31:00]} d6 {[%emt 1:31:00]} 2. d4 {[%emt 0:00:30]} Nf6 {[%emt 0:00:30]} 3. Nc3 g6 {[%emt 0:00:30]} 4. Be3 {[%emt 0:01:00]} c6 {[%emt 0:00:30]} 5. Qd2 {[%emt 0:00:30]} b5 {[%emt 0:00:30]} 6. Bd3 {[%emt 0:00:30]} Nbd7 {[%emt 0:00:00]} 7. f4 {[%emt 0:00:00]} Bg7 {[%emt 0:00:00]} 8. Nf3 {[%emt 0:00:00]} Qa5 {[%emt 0:00:00]} 9. h3 {[%emt 0:00:00]} Nb6 {[%emt 0:00:00]} 10. b3 {[%emt 0:00:00]} Rb8 {[%emt 0:00:00]} 11. e5 {[%emt 0:00:00]} Nfd5 {[%emt 0:00:00]} 12. Nxd5 {[%emt 0:00:00]} Qxd2+ {[%emt 0:00:00]} 13. Bxd2 {[%emt 0:00:00]} Nxd5 {[%emt 0:00:00]} 14. c4 {[%emt 0:00:00]} bxc4 {[%emt 0:00:00]} 15. bxc4 {[%emt 0:00:00]} Nb4 {[%emt 0:00:00]} 16. Bxb4 {[%emt 0:00:00]} Rxb4 {[%emt 0:00:00]} 17. O-O {[%emt 0:00:00]} O-O {[%emt 0:00:00]} 18. Rab1 {[%emt 0:00:00]} Ra4 {[%emt 0:00:00]} 19. Rb2 {[%emt 0:00:00]} Be6 {[%emt 0:00:00]} 20. Rc1 {[%emt 0:00:00]} Bh6 {[%emt 0:00:00]} 21. Ng5 {[%emt 0:00:00]} Bxg5 {[%emt 0:00:00]} 22. fxg5 {[%emt 0:00:00]} dxe5 {[%emt 0:00:00]} 23. dxe5 {[%emt 0:00:00]} Rd8 {[%emt 0:00:00]} 24. Be4 {[%emt 0:00:00]} c5 {[%emt 0:00:00]} 25. Rb5 {[%emt 0:00:00]} Rd4 {[%emt 0:00:00]} 26. Bc6 {[%emt 0:00:00]} Raxc4 {[%emt 0:00:00]} 27. Rxc4 {[%emt 0:00:00]} Rxc4 {[%emt 0:00:00]} 28. Ra5 {[%emt 0:00:00]} Rc1+ {[%emt 0:00:00]} 29. Kf2 {[%emt 0:00:00]} Rc2+ {[%emt 0:00:00]} 30. Ke3 {[%emt 0:00:00]} Rxa2 {[%emt 0:00:00]} 31. Rxc5 {[%emt 0:00:00]} a5 {[%emt 0:00:00]} 32. Kd3 {[%emt 0:00:00]} a4 {[%emt 0:00:00]} 33. Rc1 {[%emt 0:00:00]} Bb3 {[%emt 0:00:00]} 34. Bf3 {[%emt 0:00:00]} e6 {[%emt 0:00:00]} 35. Kd4 {[%emt 0:00:00]} Rd2+ {[%emt 0:00:00]} 36. Kc3 {[%emt 0:00:00]} Rd7 {[%emt 0:00:00]} 37. Kb4 {[%emt 0:00:00]} Rd4+ {[%emt 0:00:00]} 38. Kc5 {[%emt 0:00:00]} Rf4 {[%emt 0:00:00]} 39. Rc3 {[%emt 0:00:00]} Rf5 {[%emt 0:06:27]} 40. Kd6 {[%emt 0:00:00]} Rf4 {[%emt 0:01:12]} 41. Kc5 {[%emt 0:00:00]} Rf5 {[%emt 0:03:09]} 42. Kd6 {[%emt 0:00:00]} Rf4 {[%emt 0:07:42]} 1/2-1/2